fUSD/lending_fUSD_20250826
["ID","MTS","AMOUNT","RATE_DAILY","PERIOD"]
[381488716,1756230779432,-400.0,0.00029041,5]
[381488717,1756230779442,-1007.77,0.00029041,5]
[381488718,1756230779453,-1420.21,0.00029041,5]
[381488719,1756230779462,-952.45,0.00029041,5]
[381488720,1756230779472,-400.0,0.00029041,5]
[381488721,1756230779483,-400.0,0.00029041,5]
[381488722,1756230779494,-491.6,0.00029041,5]
[381488723,1756230779504,-1084.48,0.00029041,5]
[381488724,1756230779514,-2280.32,0.00029041,5]
[381488725,1756230779524,-1335.11,0.00029041,5]
[381488726,1756230779534,-400.0,0.00029041,5]
[381488727,1756230779543,-1191.78,0.00029041,5]
[381488728,1756230779554,-1124.09,0.00029041,5]
[381488729,1756230779564,-400.0,0.00029041,5]
[381488730,1756230779575,-1238.64,0.00029041,5]
[381488731,1756230779590,-1253.31,0.00029041,5]
[381488732,1756230779599,-1325.68,0.00029041,5]
[381488733,1756230779608,-938.22,0.00029041,5]
[381488734,1756230779617,-499.47,0.00029041,5]
[381488735,1756230779629,-601.51,0.00029041,5]
[381488736,1756230779639,-400.0,0.00029041,5]
[381488737,1756230779650,-400.0,0.00029041,5]
[381488738,1756230779661,-484.19,0.00029041,5]
[381488739,1756230779671,-400.0,0.00029041,5]
[381488740,1756230779688,-797.42,0.00029041,5]
[381488741,1756230779699,-737.11,0.00029041,5]
[381488742,1756230779710,-703.79,0.00029041,5]
[381488743,1756230779720,-1575.39,0.00029041,5]
[381488744,1756230779729,-680.36,0.00029041,5]
[381488745,1756230779740,-672.12,0.00029041,5]
[381488746,1756230779750,-759.87,0.00029041,5]
[381488747,1756230779760,-926.18,0.00029041,5]
[381488748,1756230779771,-400.0,0.00029041,5]
[381488749,1756230779784,-618.83,0.00029041,5]
[381488750,1756230779794,-400.0,0.00029041,5]
[381488751,1756230779804,-862.99,0.00029041,5]
[381488752,1756230779815,-400.0,0.00029041,5]
[381488753,1756230779827,-1075.04,0.00029041,5]
[381488754,1756230779838,-1447.2,0.00029041,5]
[381488755,1756230779849,-575.53,0.00029041,5]
[381488756,1756230779859,-845.06,0.00029041,5]
[381488757,1756230779869,-489.17,0.00029041,5]
[381488758,1756230779879,-1238.05,0.00029041,5]
[381488759,1756230779888,-1102.7,0.00029041,5]
[381488760,1756230779898,-500.0,0.00029041,10]
[381488761,1756230779908,-1359.79,0.00029041,5]
[381488762,1756230779917,-820.48,0.00029041,5]
[381488763,1756230779926,-1712.23,0.00029041,5]
[381488764,1756230779936,-1138.32,0.00029041,5]
[381488765,1756230779945,-717.51,0.00029041,5]
[381488766,1756230779954,-1260.62,0.00029041,5]
[381488767,1756230779964,-690.59,0.00029041,5]
[381488768,1756230779974,-400.0,0.00029041,5]
[381488769,1756230779984,-304.706028,0.00029041,5]
[381488770,1756230779993,-400.0,0.00029041,5]
[381488771,1756230780003,-1643.75,0.00029041,5]
[381488772,1756230780012,-956.27,0.00029041,5]
[381488773,1756230780023,-1080.95,0.00029041,5]
[381488774,1756230780033,-400.0,0.00029041,5]
[381488775,1756230780044,-704.75,0.00029041,5]
[381488776,1756230780054,-1188.76,0.00029041,5]
[381488777,1756230780065,-400.0,0.00029041,5]
[381488778,1756230780075,-884.15,0.00029041,5]
[381488779,1756230780086,-903.37,0.00029041,5]
[381488780,1756230780096,-400.0,0.00029041,5]
[381488781,1756230780106,-1272.98,0.00029041,5]
[381488782,1756230780115,-702.95,0.00029041,5]
[381488783,1756230780124,-830.28,0.00029041,5]
[381488784,1756230780134,-4381.4,0.00029041,5]
[381488785,1756230780143,-883.77,0.00029041,5]
[381488786,1756230780153,-1035.82,0.00029041,5]
[381488787,1756230780163,-440.04,0.00029041,5]
[381488788,1756230780172,-588.09,0.00029041,5]
[381488789,1756230780181,-1060.85,0.00029041,5]
[381488790,1756230780190,-729.67,0.00029041,5]
[381488791,1756230780199,-734.09,0.00029041,5]
[381488792,1756230780208,-818.36,0.00029041,5]
[381488793,1756230780217,-400.0,0.00029041,5]
[381488794,1756230780227,-1006.17,0.00029041,5]
[381488795,1756230780236,-752.5,0.00029041,5]
[381488796,1756230780246,-1000.26,0.00029041,5]
[381488797,1756230780255,-1343.19,0.00029041,5]
[381488798,1756230780265,-400.0,0.00029041,5]
[381488799,1756230780276,-400.0,0.00029041,5]
[381488800,1756230780285,-1006.41,0.00029041,5]
[381488801,1756230780295,-465.25,0.00029041,5]
[381488802,1756230780305,-574.94,0.00029041,5]
[381488803,1756230780315,-819.77,0.00029041,5]
[381488804,1756230780324,-927.58,0.00029041,5]
[381488805,1756230780333,-1229.66,0.00029041,5]
[381488806,1756230780343,-1087.43,0.00029041,5]
[381488807,1756230780352,-400.0,0.00029041,5]
[381488808,1756230780361,-1561.08,0.00029041,5]
[381488809,1756230780371,-605.76,0.00029041,5]
[381488810,1756230780381,-633.29,0.00029041,5]
[381488811,1756230780391,-1303.8,0.00029041,5]
[381488812,1756230780400,-673.66,0.00029041,5]
[381488813,1756230780410,-951.85,0.00029041,5]
[381488814,1756230780420,-727.97,0.00029041,5]
[381488815,1756230780430,-400.0,0.00029041,5]
[381488816,1756230780440,-761.39,0.00029041,5]
[381488817,1756230780450,-823.04,0.00029041,5]
[381488818,1756230780459,-995.91,0.00029041,5]
[381488819,1756230780469,-726.7,0.00029041,5]
[381488820,1756230780479,-2954.18,0.00029041,5]
[381488821,1756230780489,-932.17,0.00029041,5]
[381488822,1756230780499,-777.25,0.00029041,5]
[381488823,1756230780508,-810.82,0.00029041,5]
[381488824,1756230780518,-674.55,0.00029041,5]
[381488825,1756230780528,-400.0,0.00029041,5]
[381488826,1756230780539,-400.0,0.00029041,5]
[381488827,1756230780549,-524.65,0.00029041,5]
[381488828,1756230780558,-894.99,0.00029041,5]
[381488829,1756230780568,-610.96,0.00029041,5]
[381488830,1756230780578,-400.0,0.00029041,5]
[381488831,1756230780587,-433.22,0.00029041,5]
[381488832,1756230780597,-705.71,0.00029041,5]
[381488833,1756230780607,-1276.0,0.00029041,5]
[381488834,1756230780616,-1048.88,0.00029041,5]
[381488835,1756230780626,-635.0,0.00029041,5]
[381488836,1756230780636,-916.09,0.00029041,5]
[381488837,1756230780646,-400.0,0.00029041,5]
[381488838,1756230780655,-1476.54,0.00029041,5]
[381488839,1756230780665,-586.32,0.00029041,5]
[381488840,1756230780675,-735.88,0.00029041,5]
[381488841,1756230780687,-420.01,0.00029041,5]
[381488842,1756230780697,-1424.15,0.00029041,5]
[381488843,1756230780707,-865.15,0.00029041,5]
[381488844,1756230780717,-400.0,0.00029041,5]
[381488845,1756230780728,-711.61,0.00029041,5]
[381488846,1756230780737,-400.0,0.00029041,5]
[381488847,1756230780746,-400.0,0.00029041,5]
[381488848,1756230780757,-657.69,0.00029041,5]
[381488849,1756230780767,-2547.01,0.00029041,5]
[381488850,1756230780778,-924.7,0.00029041,5]
[381488851,1756230780787,-1447.41,0.00029041,5]
[381488852,1756230780797,-569.85,0.00029041,5]
[381488853,1756230780806,-947.0,0.00029041,5]
[381488854,1756230780816,-1125.16,0.00029041,5]
[381488855,1756230780826,-1186.06,0.00029041,5]
[381488856,1756230780836,-1017.63,0.00029041,5]
[381488857,1756230780846,-509.43,0.00029041,5]
[381488858,1756230780855,-629.18,0.00029041,5]
[381488859,1756230780865,-1490.01,0.00029041,5]
[381488860,1756230780874,-1054.6,0.00029041,5]
[381488861,1756230780884,-516.44,0.00029041,5]
[381488862,1756230780893,-810.92,0.00029041,5]
[381488863,1756230780903,-682.69,0.00029041,5]
[381488864,1756230780912,-883.73,0.00029041,5]
[381488865,1756230780922,-1283.33,0.00029041,5]
[381488866,1756230780931,-1591.74,0.00029041,5]
[381488867,1756230780941,-1009.65,0.00029041,5]
[381488868,1756230780950,-817.88,0.00029041,5]
[381488869,1756230780960,-657.14,0.00029041,5]
[381488870,1756230780969,-559.69,0.00029041,5]
[381488871,1756230780979,-400.0,0.00029041,5]
[381488872,1756230780988,-434.49,0.00029041,5]
[381488873,1756230780999,-839.27,0.00029041,5]
[381488874,1756230781008,-543.23,0.00029041,5]
[381488875,1756230781018,-400.0,0.00029041,5]
[381488876,1756230781032,-694.48,0.00029041,5]
[381488877,1756230781042,-400.0,0.00029041,5]
[381488878,1756230781051,-1164.11,0.00029041,5]
[381488879,1756230781061,-2471.18,0.00029041,5]
[381488880,1756230781071,-923.85,0.00029041,5]
[381488881,1756230781081,-735.71,0.00029041,5]
[381488882,1756230781090,-602.76,0.00029041,5]
[381488883,1756230781100,-1015.23,0.00029041,5]
[381488884,1756230781109,-1297.06,0.00029041,5]
[381488885,1756230781119,-400.0,0.00029041,5]
[381488886,1756230781129,-400.0,0.00029041,5]
[381488887,1756230781138,-1022.18,0.00029041,5]
[381488888,1756230781149,-413.82,0.00029041,5]
[381488889,1756230781159,-400.0,0.00029041,5]
[381488890,1756230781168,-435.62,0.00029041,5]
[381488891,1756230781178,-481.79,0.00029041,5]
[381488892,1756230781188,-677.17,0.00029041,5]
[381488893,1756230781198,-869.43,0.00029041,5]
[381488894,1756230781208,-310.0,0.00029041,5]
[381488895,1756230781218,-469.65240791,0.00029041,5]
[381488896,1756230781227,-400.0,0.00029041,5]
[381488897,1756230781238,-1587.32,0.00029041,5]
[381488898,1756230781248,-404.82,0.00029041,5]
[381488899,1756230781258,-1419.4,0.00029041,5]
[381488900,1756230781268,-795.96,0.00029041,5]
[381488901,1756230781279,-400.0,0.00029041,5]
[381488902,1756230781289,-400.0,0.00029041,5]
[381488903,1756230781299,-1337.38,0.00029041,5]
[381488904,1756230781309,-400.0,0.00029041,5]
[381488905,1756230781319,-643.48,0.00029041,5]
[381488906,1756230781328,-1193.06,0.00029041,5]
[381488907,1756230781338,-1262.91,0.00029041,5]
[381488908,1756230781348,-400.0,0.00029041,5]
[381488909,1756230781358,-400.0,0.00029041,5]
[381488910,1756230781368,-1405.96,0.00029041,5]
[381488911,1756230781378,-400.0,0.00029041,5]
[381488912,1756230781387,-1694.19,0.00029041,5]
[381488913,1756230781398,-847.69,0.00029041,5]
[381488914,1756230781407,-1432.19,0.00029041,5]
[381488915,1756230781417,-837.85,0.00029041,5]
[381488916,1756230781427,-1066.71,0.00029041,5]
[381488917,1756230781437,-1265.35,0.00029041,5]
[381488918,1756230781447,-1337.65,0.00029041,5]
[381488919,1756230781457,-983.38,0.00029041,5]
[381488920,1756230781467,-448.3,0.00029041,5]
[381488921,1756230781476,-510.88,0.00029041,5]
[381488922,1756230781486,-1419.37,0.00029041,5]
[381488923,1756230781496,-2638.84,0.00029041,5]
[381488924,1756230781506,-1378.39,0.00029041,5]
[381488925,1756230781516,-866.21,0.00029041,5]
[381488926,1756230781526,-436.05,0.00029041,5]
[381488927,1756230781537,-1097.19,0.00029041,5]
[381488928,1756230781547,-400.0,0.00029041,5]
[381488929,1756230781557,-968.52,0.00029041,5]
[381488930,1756230781568,-1097.27,0.00029041,5]
[381488931,1756230781578,-362.28847336,0.00029041,5]
[381488932,1756230781588,-400.0,0.00029041,5]
[381488933,1756230781598,-898.9,0.00029041,5]
[381488934,1756230781608,-894.21,0.00029041,5]
[381488935,1756230781618,-400.0,0.00029041,5]
[381488936,1756230781628,-1054.02,0.00029041,5]
[381488937,1756230781638,-486.16,0.00029041,5]
[381488938,1756230781648,-400.0,0.00029041,5]
[381488939,1756230781660,-2351.0,0.00029041,5]
[381488940,1756230781670,-400.0,0.00029041,5]
[381488941,1756230781683,-990.16,0.00029041,5]
[381488942,1756230781693,-400.0,0.00029041,5]
[381488943,1756230781703,-400.0,0.00029041,5]
[381488944,1756230781713,-708.23,0.00029041,5]
[381488945,1756230781724,-812.56,0.00029041,5]
[381488946,1756230781734,-1481.93,0.00029041,5]
[381488947,1756230781744,-400.0,0.00029041,5]
[381488948,1756230781754,-1309.05,0.00029041,5]
[381488949,1756230781764,-364.87600935,0.00029041,5]
[381488950,1756230781775,-400.0,0.00029041,5]
[381488951,1756230781785,-752.61,0.00029041,5]
[381488952,1756230781795,-12576.35,0.00029041,5]
[381488953,1756230781805,-716.67,0.00029041,5]
[381488954,1756230781816,-440.38,0.00029041,5]
[381488955,1756230781826,-1045.55,0.00029041,5]
[381488956,1756230781837,-1040.13,0.00029041,5]
[381488957,1756230781848,-610.13,0.00029041,5]
[381488958,1756230781858,-1232.14,0.00029041,5]
[381488959,1756230781868,-400.0,0.00029041,5]
[381488960,1756230781877,-453.93,0.00029041,5]
[381488961,1756230781886,-513.88,0.00029041,5]
[381488962,1756230781898,-1004.11,0.00029041,5]
[381488963,1756230781907,-956.51,0.00029041,5]
[381488964,1756230781917,-1144.57,0.00029041,5]
[381488965,1756230781926,-2716.73,0.00029041,5]
[381488966,1756230781936,-1348.02,0.00029041,5]
[381488967,1756230781947,-400.0,0.00029041,5]
[381488968,1756230781963,-400.0,0.00029041,5]
[381488969,1756230781982,-795.95,0.00029041,5]
[381488970,1756230782004,-720.68,0.00029041,5]
[381488971,1756230782022,-400.0,0.00029041,5]
[381488972,1756230782033,-583.37,0.00029041,5]
[381488973,1756230782043,-1164.87,0.00029041,5]
[381488974,1756230782054,-796.49,0.00029041,5]
[381488975,1756230782064,-1208.11,0.00029041,5]
[381488976,1756230782074,-1234.75,0.00029041,5]
[381488977,1756230782086,-2365.85,0.00029041,5]
[381488978,1756230782097,-1090.57,0.00029041,5]
[381488979,1756230782107,-725.15,0.00029041,5]
[381488980,1756230782117,-400.0,0.00029041,5]
[381488981,1756230782128,-1204.31,0.00029041,5]
[381488982,1756230782139,-400.0,0.00029041,5]
[381488983,1756230782148,-607.03,0.00029041,5]
[381488984,1756230782159,-1391.48,0.00029041,5]
[381488985,1756230782171,-1460.18,0.00029041,5]
[381488986,1756230782182,-774.92,0.00029041,5]
[381488987,1756230782192,-1529.6,0.00029041,5]
[381488988,1756230782203,-949.27,0.00029041,5]
[381488989,1756230782215,-400.0,0.00029041,5]
[381488990,1756230782226,-1214.51,0.00029041,5]
[381488991,1756230782236,-1381.91,0.00029041,5]
[381488992,1756230782247,-681.18,0.00029041,5]
[381488993,1756230782257,-846.41,0.00029041,5]
[381488994,1756230782267,-2660.08,0.00029041,5]
[381488995,1756230782278,-870.23,0.00029041,5]
[381488996,1756230782288,-1268.24,0.00029041,5]
[381488997,1756230782299,-1218.74,0.00029041,5]
[381488998,1756230782310,-960.42,0.00029041,5]
[381488999,1756230782322,-727.24,0.00029041,5]
[381489000,1756230782333,-836.11,0.00029041,5]
[381489001,1756230782345,-1206.86,0.00029041,5]
[381489002,1756230782355,-935.16,0.00029041,5]
[381489003,1756230782365,-400.0,0.00029041,5]
[381489004,1756230782375,-1646.5,0.00029041,5]
[381489005,1756230782385,-5333.52,0.00029041,5]
[381489006,1756230782395,-696.66,0.00029041,5]
[381489007,1756230782406,-400.0,0.00029041,5]
[381489008,1756230782417,-446.0,0.00029041,5]
[381489009,1756230782428,-400.0,0.00029041,5]
[381489010,1756230782439,-400.0,0.00029041,2]
[381489011,1756230782449,-859.49,0.00029041,5]
[381489012,1756230782458,-1578.12,0.00029041,5]
[381489013,1756230782469,-928.83,0.00029041,5]
[381489014,1756230782479,-604.92,0.00029041,5]
[381489015,1756230782489,-1272.58,0.00029041,5]
[381489016,1756230782499,-400.0,0.00029041,5]
[381489017,1756230782510,-400.0,0.00029041,5]
[381489018,1756230782520,-400.0,0.00029041,5]
[381489019,1756230782532,-636.63,0.00029041,5]
[381489020,1756230782542,-714.94,0.00029041,5]
[381489021,1756230782552,-400.0,0.00029041,5]
[381489022,1756230782562,-752.58,0.00029041,5]
[381489023,1756230782572,-525.95,0.00029041,5]
[381489024,1756230782582,-1703.78,0.00029041,5]
[381489025,1756230782591,-400.0,0.00029041,5]
[381489026,1756230782601,-607.66,0.00029041,5]
[381489027,1756230782611,-2407.37789572,0.00029041,2]
[381489028,1756230782620,-150.0,0.00029042,2]
[381489029,1756230782630,-500.0,0.00029042,2]
[381489030,1756230782639,-150.0,0.00029042,2]
[381489031,1756230782649,-500.0,0.00029042,2]
[381489032,1756230782659,-150.0,0.00029042,2]
[381489033,1756230782668,-500.0,0.00029042,2]
[381489034,1756230782680,-500.0,0.00029042,2]
[381489035,1756230782691,-250.76948797,0.00029042,2]
[381489036,1756230782700,-504.13282737,0.00029042,2]
[381489037,1756230782710,-150.0,0.00029042,2]
[381489038,1756230782720,-150.0,0.00029042,2]
[381489039,1756230782730,-500.0,0.00029042,2]
[381489040,1756230782741,-500.0,0.00029042,2]
[381489041,1756230782751,-150.0,0.00029042,2]
[381489042,1756230782763,-500.0,0.00029042,2]
[381489043,1756230782773,-500.0,0.00029042,2]
[381489044,1756230782782,-254.88667299,0.00029042,2]
[381489045,1756230782792,-500.0,0.00029042,2]
[381489046,1756230782804,-500.0,0.00029042,2]
[381489047,1756230782814,-300.0,0.00029042,2]
[381489048,1756230782824,-500.0,0.00029042,2]
[381489049,1756230782834,-500.0,0.00029042,2]
[381489050,1756230782844,-1349.0,0.00029042,2]
[381489051,1756230782854,-500.0,0.00029042,2]
[381489052,1756230782865,-150.0,0.00029042,2]
[381489053,1756230782875,-150.0,0.00029042,2]
[381489054,1756230782885,-500.0,0.00029042,2]
[381489055,1756230782896,-150.0,0.00029042,2]
[381489056,1756230782907,-500.0,0.00029042,2]
[381489057,1756230782918,-500.0,0.00029042,2]
[381489058,1756230782928,-150.5876774,0.00029042,2]
[381489059,1756230782939,-1052.0,0.00029042,2]
[381489060,1756230782949,-543.32979931,0.00029042,2]
[381489061,1756230782959,-150.0,0.00029042,2]
[381489062,1756230782969,-150.0,0.00029042,2]
[381489063,1756230782978,-350.0,0.00029068,5]
[381489064,1756230782989,-23123.16488376,0.0002908,11]
[381489065,1756230782999,-67349.88,0.000291,7]
[381489066,1756230783010,-500.0,0.000291,5]
[381489067,1756230783019,-4933.39,0.000292,7]
[381489068,1756230783031,-451.5,0.00029215,15]
[381489069,1756230783042,-791.0,0.0002928,2]
[381489070,1756230783053,-528.93,0.00029295,5]
[381489071,1756230783063,-1458.79,0.00029296,5]
[381489072,1756230783074,-400.0,0.00029296,5]
[381489073,1756230783084,-634.76,0.00029296,5]
[381489074,1756230783094,-539.93,0.00029296,5]
[381489075,1756230783105,-690.63,0.00029296,5]
[381489076,1756230783115,-400.0,0.00029296,5]
[381489077,1756230783126,-1099.28,0.00029296,5]
[381489078,1756230783138,-598.43,0.00029296,5]
[381489079,1756230783486,-861.3,0.00029296,5]
[381489080,1756230783497,-400.0,0.00029296,5]
[381489081,1756230783507,-1174.77,0.00029296,5]
[381489082,1756230783517,-774.77,0.00029296,5]
[381489083,1756230783527,-400.0,0.00029296,5]
[381489084,1756230783537,-400.0,0.00029296,5]
[381489085,1756230783547,-1150.13,0.00029296,5]
[381489086,1756230783556,-400.0,0.00029296,5]
[381489087,1756230783566,-554.69,0.00029296,5]
[381489088,1756230783575,-689.46,0.00029296,5]
[381489089,1756230783585,-400.0,0.00029296,5]
[381489090,1756230783595,-400.0,0.00029296,5]
[381489091,1756230783604,-400.0,0.00029296,5]
[381489092,1756230783614,-933.25,0.00029296,5]
[381489093,1756230783623,-989.27,0.00029296,5]
[381489094,1756230783632,-400.0,0.00029296,5]
[381489095,1756230783642,-400.0,0.00029296,5]
[381489096,1756230783651,-820.77,0.00029296,5]
[381489097,1756230783661,-786.47,0.00029296,5]
[381489098,1756230783671,-615.26,0.00029296,5]
[381489099,1756230783682,-400.0,0.00029296,5]
[381489100,1756230783692,-617.18,0.00029296,5]
[381489101,1756230783701,-400.0,0.00029296,5]
[381489102,1756230783711,-1146.58,0.00029296,5]
[381489103,1756230783720,-414.98,0.00029296,5]
[381489104,1756230783731,-400.39400164,0.00029296,5]
[381489105,1756230783741,-645.15,0.00029296,5]
[381489106,1756230783751,-400.0,0.00029296,5]
[381489107,1756230783762,-400.0,0.00029296,5]
[381489108,1756230783772,-400.0,0.00029296,5]
[381489109,1756230783781,-400.0,0.00029296,5]
[381489110,1756230783791,-1487.28,0.00029296,5]
[381489111,1756230783800,-400.0,0.00029296,5]
[381489112,1756230783810,-709.5,0.00029296,5]
[381489113,1756230783819,-781.03,0.00029296,5]
[381489114,1756230783829,-400.0,0.00029296,5]
[381489115,1756230783838,-736.53,0.00029296,5]
[381489116,1756230783848,-400.0,0.00029296,5]
[381489117,1756230783858,-475.59,0.00029296,5]
[381489118,1756230783867,-400.0,0.00029296,5]
[381489119,1756230783877,-400.0,0.00029296,5]
[381489120,1756230783887,-586.19,0.00029296,5]
[381489121,1756230783897,-1100.6,0.00029296,5]
[381489122,1756230783907,-400.0,0.00029296,5]
[381489123,1756230783917,-558.77,0.00029296,5]
[381489124,1756230783927,-198.96936335,0.00029296,5]
[381489125,1756230783937,-532.53685763,0.00029296,5]
[381489126,1756230783946,-805.61,0.00029296,5]
[381489127,1756230783956,-587.26,0.00029296,5]
[381489128,1756230783965,-880.88,0.00029296,5]
[381489129,1756230783975,-1142.86,0.00029314,5]
[381489130,1756230783985,-1254.63,0.00029314,5]
[381489131,1756230783995,-1057.93,0.00029314,5]
[381489132,1756230784005,-1079.24,0.00029314,5]
[381489133,1756230784022,-3055.95,0.00029314,5]
[381489134,1756230784039,-1650.32,0.00029314,5]
[381489135,1756230784048,-13513.14,0.00029314,5]
[381489136,1756230784058,-2253.65,0.00029314,5]
[381489137,1756230784069,-1270.75,0.00029314,5]
[381489138,1756230784085,-2157.11,0.00029314,5]
[381489139,1756230784095,-1950.58,0.00029314,5]
[381489140,1756230784104,-1356.06,0.00029314,5]
[381489141,1756230784114,-1314.24,0.00029314,5]
[381489142,1756230784124,-1468.69,0.00029314,5]
[381489143,1756230784134,-809.74,0.00029314,5]
[381489144,1756230784144,-1206.09,0.00029314,5]
[381489145,1756230784154,-741.88,0.00029314,5]
[381489146,1756230784164,-1611.27,0.00029314,5]
[381489147,1756230784175,-1224.97,0.00029314,5]
[381489148,1756230784184,-1049.32,0.00029314,5]
[381489149,1756230784194,-976.61,0.00029314,5]
[381489150,1756230784204,-1611.56,0.00029314,5]
[381489151,1756230784215,-869.98,0.00029314,5]
[381489152,1756230784224,-1131.94,0.00029314,5]
[381489153,1756230784234,-782.57,0.00029314,5]
[381489154,1756230784244,-1548.86,0.00029314,5]
[381489155,1756230784254,-1331.02,0.00029314,5]
[381489156,1756230784264,-1391.3,0.00029314,5]
[381489157,1756230784274,-1191.31,0.00029314,5]
[381489158,1756230784286,-1107.49,0.00029314,5]
[381489159,1756230784296,-1320.74,0.00029314,5]
[381489160,1756230784305,-1054.46,0.00029314,5]
[381489161,1756230784315,-400.0,0.00029314,5]
[381489162,1756230784325,-1150.33,0.00029314,5]
[381489163,1756230784334,-819.86,0.00029314,5]
[381489164,1756230784344,-400.0,0.00029314,5]
[381489165,1756230784355,-933.75,0.00029314,5]
[381489166,1756230784365,-1547.78,0.00029314,5]
[381489167,1756230784374,-1438.18,0.00029314,5]
[381489168,1756230784384,-1497.03,0.00029314,5]
[381489169,1756230784394,-6789.96,0.00029314,5]
[381489170,1756230784403,-1497.12,0.00029314,5]
[381489171,1756230784413,-400.0,0.00029314,5]
[381489172,1756230784423,-863.08,0.00029314,5]
[381489173,1756230784433,-753.29,0.00029314,5]
[381489174,1756230784443,-787.78,0.00029314,5]
[381489175,1756230784453,-1613.31,0.00029314,5]
[381489176,1756230784464,-773.75,0.00029314,5]
[381489177,1756230784474,-586.3,0.00029314,5]
[381489178,1756230784486,-530.09,0.00029314,5]
[381489179,1756230784495,-1037.63,0.00029314,5]
[381489180,1756230784506,-1217.55,0.00029314,5]
[381489181,1756230784516,-1228.91,0.00029314,5]
[381489182,1756230784527,-400.0,0.00029314,5]
[381489183,1756230784537,-1141.77,0.00029314,5]
[381489184,1756230784548,-1590.13,0.00029314,5]
[381489185,1756230784557,-924.3,0.00029314,5]
[381489186,1756230784567,-575.23,0.00029314,5]
[381489187,1756230784578,-664.99,0.00029314,5]
[381489188,1756230784588,-778.5,0.00029314,5]
[381489189,1756230784599,-1457.28,0.00029314,5]
[381489190,1756230784609,-724.45,0.00029314,5]
[381489191,1756230784618,-847.97,0.00029314,5]
[381489192,1756230784628,-630.74,0.00029314,5]
[381489193,1756230784637,-1505.52,0.00029314,5]
[381489194,1756230784647,-717.92,0.00029314,5]
[381489195,1756230784657,-431.96,0.00029314,5]
[381489196,1756230784667,-1179.57,0.00029314,5]
[381489197,1756230784678,-1699.29,0.00029314,5]
[381489198,1756230784692,-854.23,0.00029314,5]
[381489199,1756230784702,-628.02,0.00029314,5]
[381489200,1756230784712,-1139.37,0.00029314,5]
[381489201,1756230784722,-480.43,0.00029314,5]
[381489202,1756230784734,-683.47,0.00029314,5]
[381489203,1756230784746,-1228.89,0.00029314,5]
[381489204,1756230784756,-400.0,0.00029315,5]
[381489205,1756230784766,-1156.63,0.00029315,5]
[381489206,1756230784776,-814.45,0.00029315,5]
[381489207,1756230784785,-400.0,0.00029315,5]
[381489208,1756230784795,-1203.77,0.00029315,5]
[381489209,1756230784804,-677.3,0.00029315,5]
[381489210,1756230784814,-1373.11,0.00029315,5]
[381489211,1756230784824,-412.27,0.00029315,5]
[381489212,1756230784833,-466.37,0.00029315,5]
[381489213,1756230784843,-884.22,0.00029315,5]
[381489214,1756230784853,-579.9,0.00029315,5]
[381489215,1756230784862,-400.0,0.00029315,5]